fUSD/lending_fUSD_20260423
["ID","MTS","AMOUNT","RATE_DAILY","PERIOD"]
[421050464,1776951542545,-1500.0,0.00041643,50]
[421050465,1776951542555,-150.0,0.00041645,90]
[421050466,1776951542565,-2000.0,0.00041645,90]
[421050467,1776951542575,-1437.61,0.00041645,90]
[421050468,1776951542585,-150.0,0.00041645,90]
[421050469,1776951542595,-755.03,0.00041645,90]
[421050470,1776951542606,-152.01,0.00041645,90]
[421050471,1776951542616,-150.0,0.00041645,90]
[421050472,1776951542626,-2196.64,0.00041652,30]
[421050473,1776951542635,-5000.0,0.00041671,30]
[421050474,1776951542645,-480.0,0.000417,15]
[421050475,1776951542655,-480.0,0.000417,15]
[421050476,1776951542665,-1334.5,0.000417,33]
[421050477,1776951542674,-675.59930585,0.00041781,10]
[421050478,1776951542684,-530.9935167,0.00041781,10]
[421050479,1776951542694,-448.53826183,0.00041781,10]
[421050480,1776951542704,-482.61606657,0.00041781,10]
[421050481,1776951542715,-1915.87282729,0.00041781,10]
[421050482,1776951542725,-2405.379468,0.00041781,10]
[421050483,1776951542734,-3388.0,0.00041781,10]
[421050484,1776951542745,-3388.0,0.00041781,10]
[421050485,1776951542754,-1836.0,0.00041781,10]
[421050486,1776951542764,-1200.3882655,0.00041781,10]
[421050487,1776951542774,-1403.26456338,0.00041781,10]
[421050488,1776951542784,-1129.76633479,0.00041781,10]
[421050489,1776951542794,-873.14526082,0.00041781,10]
[421050490,1776951542804,-400.12942183,0.00041781,10]
[421050491,1776951542813,-685.72482118,0.00041781,10]
[421050492,1776951542823,-682.13314968,0.00041781,10]
[421050493,1776951542832,-18037.3616831,0.000418,90]
[421050494,1776951542842,-1633.42,0.000418,60]
[421050495,1776951542852,-150.0,0.00041834,2]
[421050496,1776951542863,-150.0,0.00041867,90]
[421050497,1776951542873,-5387.0,0.0004188,90]
[421050498,1776951542883,-719.86714127,0.0004189,90]
[421050499,1776951542893,-480.0,0.000419,15]
[421050500,1776951542902,-480.0,0.000419,15]
[421050501,1776951542912,-1605.22199109,0.000419,30]
[421050502,1776951542922,-570.35,0.00041901,30]
[421050503,1776951542932,-183.4,0.00041903,30]
[421050504,1776951542943,-181.15,0.00041905,30]
[421050505,1776951542953,-157.14763931,0.00041909,2]
[421050506,1776951542963,-151.0,0.00041909,30]
[421050507,1776951542973,-1500.0,0.00041917,60]
[421050508,1776951542983,-100000.0,0.00042,40]
[421050509,1776951542993,-152.47,0.00042,2]
[421050510,1776951543002,-500.0,0.00042,2]
[421050511,1776951543012,-500.0,0.00042,45]
[421050512,1776951543022,-500.0,0.00042,45]
[421050513,1776951543031,-500.0,0.00042,45]
[421050514,1776951543041,-500.0,0.00042,45]
[421050515,1776951543051,-500.0,0.00042,45]
[421050516,1776951543060,-500.0,0.00042,45]
[421050517,1776951543070,-500.0,0.00042,45]
[421050518,1776951543080,-500.0,0.00042,45]
[421050519,1776951543090,-500.0,0.00042,45]
[421050520,1776951543099,-500.0,0.00042,45]
[421050521,1776951543110,-500.0,0.00042,45]
[421050522,1776951543119,-500.0,0.00042,45]
[421050523,1776951543129,-500.0,0.00042,45]
[421050524,1776951543139,-500.0,0.00042,45]
[421050525,1776951543148,-500.0,0.00042,45]
[421050526,1776951543158,-500.0,0.00042,45]
[421050527,1776951543168,-500.0,0.00042,45]
[421050528,1776951543178,-500.0,0.00042,45]
[421050529,1776951543187,-500.0,0.00042,45]
[421050530,1776951543197,-500.0,0.00042,45]
[421050531,1776951543206,-500.0,0.00042,45]
[421050532,1776951543216,-500.0,0.00042,45]
[421050533,1776951543226,-500.0,0.00042,45]
[421050534,1776951543236,-500.0,0.00042,45]
[421050535,1776951543246,-500.0,0.00042,45]
[421050536,1776951543255,-10000.0,0.00042,90]
[421050537,1776951543265,-279.8782042,0.00042,30]
[421050538,1776951543276,-5369.5222507,0.00042,30]
[421050539,1776951543287,-2000.0,0.00042,60]
[421050540,1776951543297,-164.43383449,0.00042,30]
[421050541,1776951543306,-2000.0,0.00042,7]
[421050542,1776951543317,-10358.49303724,0.00042,21]
[421050543,1776951543326,-1000.0,0.00042,30]
[421050544,1776951543335,-4593.17163273,0.00042,61]
[421050545,1776951543344,-3660.753996,0.00042,61]
[421050546,1776951543353,-480.0,0.00042,15]
[421050547,1776951543363,-480.0,0.00042,15]
[421050548,1776951543372,-1798.01121402,0.00042,2]
[421050549,1776951543381,-552.01945778,0.00042,30]
[421050550,1776951543390,-2240.41243867,0.00042,30]
[421050551,1776951543399,-1000.0,0.00042,34]
[421050552,1776951543408,-712.96442993,0.00042,61]
[421050553,1776951543417,-655.0539287,0.00042,30]
[421050554,1776951543426,-10338.85212841,0.00042,30]
[421050555,1776951543435,-6235.14406644,0.00042,60]
[421050556,1776951543445,-501.33486644,0.00042,30]
[421050557,1776951543454,-15600.0,0.00042,30]
[421050558,1776951543463,-1460.7520248,0.00042,60]
[421050559,1776951543472,-179.27101974,0.00042,7]
[421050560,1776951543481,-4721.93033798,0.00042,30]
[421050561,1776951543490,-1782.0,0.00042,90]
[421050562,1776951543500,-24092.70104271,0.00042,30]
[421050563,1776951543508,-3659.0,0.00042,30]
[421050564,1776951543518,-50000.0,0.00042,120]
[421050565,1776951543527,-50000.0,0.00042,120]
[421050566,1776951543537,-600.0,0.00042,120]
[421050567,1776951543546,-150.0,0.00042,120]
[421050568,1776951543555,-50000.0,0.00042,120]
[421050569,1776951543564,-1379.93221251,0.0004201,2]
[421050570,1776951543573,-733.12255216,0.0004201,80]
[421050571,1776951543583,-1000.0,0.0004203,14]
[421050572,1776951543592,-1873.91,0.00042042,90]
[421050573,1776951543602,-231.33,0.00042042,90]
[421050574,1776951543612,-237.32602653,0.00042043,30]
[421050575,1776951543622,-322.5925912,0.00042049,30]
[421050576,1776951543632,-1000.0,0.0004205,14]
[421050577,1776951543641,-9047.91887103,0.0004205,2]
[421050578,1776951543652,-282.85289648,0.00042051,30]
[421050579,1776951543662,-185.20545938,0.0004207,60]
[421050580,1776951543671,-10247.0933,0.00042087,30]
[421050581,1776951543680,-480.0,0.000421,15]
[421050582,1776951543690,-729.3,0.000421,60]
[421050583,1776951543699,-1266.66,0.000421,90]
[421050584,1776951543709,-2220.75,0.000421,90]
[421050585,1776951543718,-692.38,0.000421,90]
[421050586,1776951543728,-250.0,0.00042137,100]
[421050587,1776951543738,-150.0,0.00042173,120]
[421050588,1776951543747,-157.14763931,0.00042183,2]
[421050589,1776951543756,-377216.01146136,0.00042185,30]
[421050590,1776951543765,-1000.0,0.0004219,21]
[421050591,1776951543775,-1500.0,0.00042191,70]
[421050592,1776951543784,-5696.66850942,0.000422,2]
[421050593,1776951543794,-480.0,0.000422,15]
[421050594,1776951543804,-442694.08762098,0.000422,30]
[421050595,1776951543814,-249.667665,0.00042207,7]
[421050596,1776951543824,-1498.060861,0.00042207,7]
[421050597,1776951543833,-2968.210952,0.00042207,7]
[421050598,1776951543843,-234.28562665,0.00042224,30]
[421050599,1776951543853,-232.01262756,0.00042234,30]
[421050600,1776951543862,-1414.49,0.00042253,30]
[421050601,1776951543872,-480.0,0.000423,15]
[421050602,1776951543881,-396401.0,0.000423,60]
[421050603,1776951543891,-480.0,0.000424,15]
[421050604,1776951543900,-480.0,0.000424,15]
[421050605,1776951543910,-384.5092,0.000424,90]
[421050606,1776951543920,-333.7872,0.000424,90]
[421050607,1776951543930,-1624.54,0.000424,90]
[421050608,1776951543939,-1488.89,0.000424,90]
[421050609,1776951543949,-106706.09065052,0.0004244,6]
[421050610,1776951543959,-157.14763931,0.00042457,2]
[421050611,1776951543968,-1500.0,0.00042465,80]
[421050612,1776951543978,-2881.0758936,0.00042466,10]
[421050613,1776951543987,-35791.4,0.00042487,30]
[421050614,1776951543998,-505.0,0.00042487,27]
[421050615,1776951544007,-234.79332873,0.00042497,30]
[421050616,1776951544017,-300.29419008,0.000425,3]
[421050617,1776951544027,-500.0,0.000425,45]
[421050618,1776951544036,-500.0,0.000425,45]
[421050619,1776951544045,-500.0,0.000425,45]
[421050620,1776951544055,-500.0,0.000425,45]
[421050621,1776951544064,-500.0,0.000425,45]
[421050622,1776951544073,-500.0,0.000425,45]
[421050623,1776951544084,-500.0,0.000425,45]
[421050624,1776951544093,-500.0,0.000425,45]
[421050625,1776951544102,-500.0,0.000425,45]
[421050626,1776951544113,-500.0,0.000425,45]
[421050627,1776951544123,-500.0,0.000425,45]
[421050628,1776951544132,-500.0,0.000425,45]
[421050629,1776951544142,-500.0,0.000425,45]
[421050630,1776951544151,-500.0,0.000425,45]
[421050631,1776951544160,-500.0,0.000425,45]
[421050632,1776951544170,-500.0,0.000425,45]
[421050633,1776951544179,-500.0,0.000425,45]
[421050634,1776951544188,-500.0,0.000425,45]
[421050635,1776951544198,-500.0,0.000425,45]
[421050636,1776951544549,-500.0,0.000425,45]
[421050637,1776951544599,-500.0,0.000425,45]
[421050638,1776951544609,-500.0,0.000425,45]
[421050639,1776951544619,-500.0,0.000425,45]
[421050640,1776951544628,-500.0,0.000425,45]
[421050641,1776951544638,-1765.33891829,0.000425,60]
[421050642,1776951544648,-1000.0,0.000425,90]
[421050643,1776951544658,-1000.0,0.000425,60]
[421050644,1776951544668,-1000.0,0.000425,65]
[421050645,1776951544677,-1000.0,0.000425,75]
[421050646,1776951544688,-1000.0,0.000425,85]
[421050647,1776951544697,-1000.0,0.000425,95]
[421050648,1776951544707,-1000.0,0.000425,105]
[421050649,1776951544717,-1000.0,0.000425,30]
[421050650,1776951544729,-1000.0,0.000425,35]
[421050651,1776951544739,-28845.99,0.000425,60]
[421050652,1776951544749,-2051.07740328,0.000425,45]
[421050653,1776951544759,-151.0,0.000425,60]
[421050654,1776951544768,-5196.0,0.000425,30]
[421050655,1776951544778,-4036.0,0.000425,7]
[421050656,1776951544790,-480.0,0.000425,15]
[421050657,1776951544799,-10000.0,0.000425,90]
[421050658,1776951544809,-2000.0,0.000425,60]
[421050659,1776951544819,-480.0,0.000426,15]
[421050660,1776951544829,-738.55800077,0.00042624,80]
[421050661,1776951544839,-234.59,0.00042651,30]
[421050662,1776951544849,-176.24,0.00042651,30]
[421050663,1776951544859,-461.46,0.00042651,30]
[421050664,1776951544870,-11098.39963188,0.000427,7]
[421050665,1776951544880,-63674.92148209,0.0004272,23]
[421050666,1776951544890,-183.36,0.00042725,30]
[421050667,1776951544900,-168.11,0.0004273,2]
[421050668,1776951544910,-157.14763931,0.00042731,2]
[421050669,1776951544920,-1500.0,0.00042739,90]
[421050670,1776951544929,-10646.1810458,0.000428,30]
[421050671,1776951544939,-8096.24,0.00042822,60]
[421050672,1776951544949,-3297.93,0.00042822,60]
[421050673,1776951544959,-200.0,0.0004283,60]
[421050674,1776951544969,-150.0,0.00042834,2]
[421050675,1776951544978,-200.0,0.00042836,15]
[421050676,1776951544988,-200.20655683,0.00042836,60]
[421050677,1776951544998,-200.0,0.00042836,15]
[421050678,1776951545009,-200.0,0.00042836,60]
[421050679,1776951545019,-200.0,0.00042836,15]
[421050680,1776951545028,-300.73176407,0.00042836,30]
[421050681,1776951545038,-200.18209075,0.00042836,15]
[421050682,1776951545048,-300.53158872,0.00042836,15]
[421050683,1776951545057,-76435.24760934,0.0004285,30]
[421050684,1776951545067,-333.72010496,0.00042855,30]
[421050685,1776951545076,-2247.85987963,0.0004287,5]
[421050686,1776951545086,-80694.13694466,0.00042875,60]
[421050687,1776951545095,-448.95580245,0.00042875,60]
[421050688,1776951545107,-1001919.01355187,0.0004288,60]
[421050689,1776951545116,-12500.0,0.0004289,32]
[421050690,1776951545126,-8601.94001238,0.00042894,112]
[421050691,1776951545135,-37077.98257181,0.000429,10]
[421050692,1776951545145,-3169.12479381,0.000429,60]
[421050693,1776951545155,-394.03914357,0.000429,60]
[421050694,1776951545164,-12161.8575883,0.000429,60]
[421050695,1776951545174,-1524.6586297,0.000429,30]
[421050696,1776951545184,-1790.0,0.000429,30]
[421050697,1776951545194,-12500.0,0.000429,25]
[421050698,1776951545204,-12500.0,0.000429,39]
[421050699,1776951545213,-538213.1327,0.00042907,2]
[421050700,1776951545223,-1550.7,0.00042932,120]
[421050701,1776951545233,-263.90064421,0.00042932,120]
[421050702,1776951545243,-4000.0,0.00042936,120]
[421050703,1776951545253,-208.0,0.0004295,30]
[421050704,1776951545263,-231.42357003,0.00042978,30]
[421050705,1776951545272,-3905.93994752,0.0004299,60]
[421050706,1776951545282,-100000.0,0.00043,45]
[421050707,1776951545291,-214.0,0.00043,7]
[421050708,1776951545301,-600.0,0.00043,14]
[421050709,1776951545311,-10000.00000001,0.00043,7]
[421050710,1776951545320,-100000.0,0.00043,12]
[421050711,1776951545330,-1000.0,0.00043,2]
[421050712,1776951545339,-4732.0778842,0.00043,31]
[421050713,1776951545349,-260174.73031263,0.00043,2]
[421050714,1776951545359,-2903.50032732,0.00043,31]
[421050715,1776951545369,-2000.0,0.00043,90]
[421050716,1776951545379,-431.57773974,0.00043,2]
[421050717,1776951545388,-17118.0,0.00043,90]
[421050718,1776951545399,-5276.29913,0.00043,90]
[421050719,1776951545408,-5000.0,0.00043,90]
[421050720,1776951545418,-2931.0,0.00043,90]
[421050721,1776951545428,-42375.0,0.00043,30]
[421050722,1776951545437,-50000.0,0.00043,60]
[421050723,1776951545447,-2063.30647284,0.00043,5]
[421050724,1776951545457,-8725.46867787,0.00043,30]
[421050725,1776951545466,-10000.0,0.00043,60]
[421050726,1776951545476,-10000.0,0.00043,21]
[421050727,1776951545486,-1000.0,0.00043,30]
[421050728,1776951545495,-2000.0,0.00043,60]
[421050729,1776951545505,-2000.39,0.00043,60]
[421050730,1776951545515,-1614.95,0.00043,60]
[421050731,1776951545524,-100000.0,0.00043,13]
[421050732,1776951545534,-100000.0,0.00043,14]
[421050733,1776951545544,-1000.0,0.00043,40]
[421050734,1776951545554,-2169.73543276,0.00043,30]
[421050735,1776951545563,-711.79772272,0.00043,3]
[421050736,1776951545573,-5000.0,0.00043,90]
[421050737,1776951545583,-5000.0,0.00043,90]
[421050738,1776951545593,-4711.90733,0.00043,90]
[421050739,1776951545602,-287849.24870656,0.00043,7]
[421050740,1776951545613,-562.41292438,0.00043,7]
[421050741,1776951545622,-33077.06386767,0.00043,30]
[421050742,1776951545633,-332936.88393202,0.00043,30]
[421050743,1776951545642,-359410.7460168,0.00043,10]
[421050744,1776951545652,-12497.46691105,0.00043,30]
[421050745,1776951545661,-10056.0,0.00043,30]
[421050746,1776951545671,-5114.03909939,0.00043,60]
[421050747,1776951545680,-20000.0,0.00043,60]
[421050748,1776951545690,-3659.0,0.00043,30]
[421050749,1776951545700,-809679.63771877,0.00043,40]
[421050750,1776951545709,-160000.0,0.00043,40]
[421050751,1776951545720,-21081.0,0.00043,60]
[421050752,1776951545730,-1000.0,0.00043,2]
[421050753,1776951545740,-1250.0,0.00043,120]
[421050754,1776951545750,-150.0,0.00043001,120]
[421050755,1776951545761,-150.0,0.00043001,120]
[421050756,1776951545770,-157.14763931,0.00043005,2]
[421050757,1776951545780,-1500.0,0.00043013,100]
[421050758,1776951545790,-1000.0,0.0004303,14]
[421050759,1776951545799,-200.0,0.0004303,60]
[421050760,1776951545809,-5000.0,0.00043036,120]
[421050761,1776951545819,-352.34312987,0.00043086,30]
[421050762,1776951545828,-468.97,0.0004309,30]
[421050763,1776951545838,-500.0,0.00043091,30]
[421050764,1776951545849,-422.52,0.00043091,30]
[421050765,1776951545860,-1000.0,0.000431,25]
[421050766,1776951545869,-645855.7593,0.00043107,7]
[421050767,1776951545879,-5000.0,0.00043136,120]
[421050768,1776951545889,-1000.0,0.0004315,14]
[421050769,1776951545899,-6213.48787486,0.00043164,14]
[421050770,1776951545909,-1000.0,0.0004319,21]
[421050771,1776951545919,-374.55443514,0.0004319,60]
[421050772,1776951545929,-1000.0,0.000432,25]
[421050773,1776951545939,-86768.95700127,0.000432,30]
[421050774,1776951545949,-50000.0,0.00043206,65]
[421050775,1776951545959,-50000.0,0.00043206,66]
[421050776,1776951545968,-50000.0,0.00043206,67]
[421050777,1776951545978,-50000.0,0.00043206,68]
[421050778,1776951545988,-50000.0,0.00043206,69]
[421050779,1776951545997,-50000.0,0.00043206,70]
[421050780,1776951546007,-50000.0,0.00043206,60]
[421050781,1776951546017,-50000.0,0.00043206,61]
[421050782,1776951546026,-50000.0,0.00043206,62]
[421050783,1776951546036,-50000.0,0.00043206,63]
[421050784,1776951546045,-50000.0,0.00043206,64]
[421050785,1776951546055,-50000.0,0.00043206,71]
[421050786,1776951546064,-50000.0,0.00043206,72]
[421050787,1776951546074,-50000.0,0.00043206,73]
[421050788,1776951546084,-50000.0,0.00043206,74]
[421050789,1776951546093,-50000.0,0.00043206,75]
[421050790,1776951546103,-50000.0,0.00043206,50]
[421050791,1776951546113,-50000.0,0.00043206,51]
[421050792,1776951546123,-50000.0,0.00043206,52]
[421050793,1776951546133,-50000.0,0.00043206,53]
[421050794,1776951546142,-4000.0,0.00043206,81]
[421050795,1776951546152,-4000.0,0.00043206,91]
[421050796,1776951546164,-131787.72130511,0.00043207,2]
[421050797,1776951546174,-15284.93274867,0.00043207,2]
[421050798,1776951546185,-234.02992812,0.00043207,2]
[421050799,1776951546195,-177.60955274,0.00043207,2]
[421050800,1776951546205,-6000.0,0.00043207,2]
[421050801,1776951546215,-383.67397406,0.00043207,2]
[421050802,1776951546225,-1307.07637986,0.00043207,2]
[421050803,1776951546235,-1056.24461215,0.00043207,2]
[421050804,1776951546245,-676.59718162,0.00043207,2]
[421050805,1776951546255,-7969.21442097,0.00043207,2]
[421050806,1776951546265,-640.60549392,0.00043207,2]
[421050807,1776951546274,-219.61369441,0.00043207,2]
[421050808,1776951546284,-1090.83000573,0.00043207,2]
[421050809,1776951546294,-2500.0,0.00043207,2]
[421050810,1776951546304,-349.8348135,0.00043207,2]
[421050811,1776951546313,-1100.0,0.00043207,2]
[421050812,1776951546324,-3912.90012538,0.00043207,2]
[421050813,1776951546334,-932.79409031,0.00043207,2]
[421050814,1776951546344,-492.48600058,0.00043207,2]
[421050815,1776951546354,-1623.2674679,0.00043207,2]
[421050816,1776951546366,-560.73060442,0.00043207,2]
[421050817,1776951546376,-1034.69860719,0.00043207,2]
[421050818,1776951546386,-373.07978731,0.00043207,2]
[421050819,1776951546396,-2254.30494636,0.00043207,2]
[421050820,1776951546406,-15147.41650798,0.00043207,2]
[421050821,1776951546415,-12523.65858469,0.00043207,2]
[421050822,1776951546425,-7008.98269815,0.00043207,4]
[421050823,1776951546435,-1878.49352868,0.00043207,2]
[421050824,1776951546444,-1143.65997339,0.00043207,2]
[421050825,1776951546454,-5365.43709394,0.00043207,4]
[421050826,1776951546463,-279.47891738,0.00043207,2]
[421050827,1776951546473,-411.7433851,0.00043207,2]
[421050828,1776951546483,-20767.35373686,0.00043207,2]
[421050829,1776951546492,-2495.24318945,0.00043207,2]
[421050830,1776951546502,-207.50037317,0.00043207,2]
[421050831,1776951546512,-883.13831722,0.00043207,2]
[421050832,1776951546522,-289.28323026,0.00043207,2]
[421050833,1776951546531,-5822.42290621,0.00043207,2]
[421050834,1776951546541,-2223.3156825,0.00043207,2]
[421050835,1776951546551,-896.23592107,0.00043207,2]
[421050836,1776951546560,-471.15861788,0.00043207,2]
[421050837,1776951546570,-150.0,0.00043207,2]
[421050838,1776951546580,-12935.11585007,0.00043207,2]
[421050839,1776951546590,-204.06710539,0.00043207,2]
[421050840,1776951546600,-759.75261738,0.00043207,2]
[421050841,1776951546611,-1528.00383853,0.00043207,2]
[421050842,1776951546621,-20000.0,0.00043207,2]
[421050843,1776951546631,-467.43350114,0.00043207,2]
[421050844,1776951546641,-160.42795167,0.00043207,2]
[421050845,1776951546652,-15142.95819737,0.00043207,2]
[421050846,1776951546661,-582.32375847,0.00043207,5]
[421050847,1776951546671,-2049.72822829,0.00043207,5]
[421050848,1776951546680,-644.65162587,0.00043207,6]
[421050849,1776951546690,-1009.54109589,0.00043207,5]
[421050850,1776951546700,-600.0,0.00043207,5]
[421050851,1776951546709,-500.0,0.00043207,5]
[421050852,1776951546720,-19758.92896226,0.00043207,5]
[421050853,1776951546729,-1117.45482629,0.00043207,5]
[421050854,1776951546739,-504.76397526,0.00043207,5]
[421050855,1776951546749,-3916.1613051,0.00043207,12]
[421050856,1776951546758,-2401.59947928,0.00043207,10]
[421050857,1776951546768,-6131.48238765,0.00043207,15]
[421050858,1776951546777,-1639.7896987,0.00043207,10]
[421050859,1776951546786,-737.68248133,0.00043207,10]
[421050860,1776951546796,-1018.23721532,0.00043207,15]
[421050861,1776951546805,-552.70878648,0.00043207,7]
[421050862,1776951546815,-300.0,0.00043207,15]
[421050863,1776951546824,-1112.34256606,0.00043207,7]
[421050864,1776951546834,-2449.7881485,0.00043207,14]
[421050865,1776951546843,-1325.49401698,0.00043207,15]
[421050866,1776951546853,-1000.0,0.00043207,10]
[421050867,1776951546863,-500.0,0.00043207,10]
[421050868,1776951546873,-1078.31593831,0.00043207,7]
[421050869,1776951546882,-1672.8719667,0.00043207,18]
[421050870,1776951546892,-483.71115674,0.00043207,7]
[421050871,1776951546901,-226.56511698,0.00043207,7]
[421050872,1776951546910,-150.0,0.00043207,14]
[421050873,1776951547070,-1145.70734582,0.00043207,2]
[421050874,1776951547080,-5404.700999,0.00043207,2]
[421050875,1776951547090,-201.14848695,0.00043207,2]
[421050876,1776951547100,-222.29611415,0.00043207,7]
[421050877,1776951547111,-180.0,0.00043207,2]
[421050878,1776951547121,-361.68960151,0.00043207,2]
[421050879,1776951547131,-400.06550297,0.00043207,2]
[421050880,1776951547141,-201495.51270917,0.00043207,2]
[421050881,1776951547151,-124923.7076722,0.00043207,2]
[421050882,1776951547160,-10935.73769561,0.00043207,3]
[421050883,1776951547170,-1210.0,0.00043207,2]
[421050884,1776951547179,-719.33648188,0.00043207,2]
[421050885,1776951547189,-356.41277645,0.00043207,2]
[421050886,1776951547198,-989.26321285,0.00043207,2]
[421050887,1776951547209,-1555.70069671,0.00043207,2]
[421050888,1776951547219,-1053.58018763,0.00043207,2]
[421050889,1776951547228,-5309.19545054,0.00043207,2]
[421050890,1776951547238,-8913997.52628231,0.00043207,20]
[421050891,1776951547247,-18088.47733477,0.00043207,20]
[421050892,1776951547257,-1523.76378962,0.00043207,2]
[421050893,1776951547266,-5202.09150985,0.00043207,10]
[421050894,1776951547276,-8300.0,0.00043207,7]
[421050895,1776951547286,-5344.54287424,0.00043207,2]
[421050896,1776951547296,-502.24967792,0.00043207,2]
[421050897,1776951547306,-2513.80554791,0.00043207,2]
[421050898,1776951547315,-2768.04153777,0.00043207,2]
[421050899,1776951547326,-154.85793488,0.00043207,2]
[421050900,1776951547335,-221453.74674619,0.00043207,2]
[421050901,1776951547345,-1716.7788533,0.00043207,2]
[421050902,1776951547354,-254.98641813,0.00043207,2]
[421050903,1776951547366,-500.0,0.00043207,2]
[421050904,1776951547375,-1290.93923484,0.00043207,2]
[421050905,1776951547385,-249.03115698,0.00043207,2]
[421050906,1776951547395,-1066.0174883,0.00043207,2]
[421050907,1776951547405,-558.06468486,0.00043207,2]
[421050908,1776951547415,-9454.95756592,0.00043207,2]
[421050909,1776951547425,-1342.34895363,0.00043207,2]
[421050910,1776951547434,-1221.0,0.00043207,4]
[421050911,1776951547444,-3501.08884496,0.00043207,2]
[421050912,1776951547454,-2248.4466723,0.00043207,2]
[421050913,1776951547464,-765.03463043,0.00043207,2]
[421050914,1776951547475,-13136.3776115,0.00043207,2]
[421050915,1776951547485,-188.35176894,0.00043207,2]
[421050916,1776951547495,-15329.22311086,0.00043207,3]
[421050917,1776951547504,-643.0,0.00043207,2]
[421050918,1776951547514,-2028.21648568,0.00043207,4]
[421050919,1776951547524,-993.22707934,0.00043207,2]
[421050920,1776951547533,-586.41217992,0.00043207,2]
[421050921,1776951547542,-814385.5034396,0.00043207,2]
[421050922,1776951547552,-3317.44737468,0.00043207,2]
[421050923,1776951547561,-179.45618037,0.00043207,2]
[421050924,1776951547571,-550.0,0.00043207,2]
[421050925,1776951547581,-10957.60215243,0.00043207,2]
[421050926,1776951547590,-42144.02958675,0.00043207,2]
[421050927,1776951547600,-1976.94431442,0.00043207,2]
[421050928,1776951547609,-26695.62263035,0.00043207,14]
[421050929,1776951547620,-372.93752828,0.00043207,14]
[421050930,1776951547630,-1038.60308067,0.00043207,20]
[421050931,1776951547639,-150.0,0.00043207,2]
[421050932,1776951547649,-150.0,0.00043207,3]
[421050933,1776951547659,-610.0,0.00043207,2]
[421050934,1776951547669,-7813.64940951,0.00043207,2]
[421050935,1776951547680,-310.99084618,0.00043207,2]
[421050936,1776951547690,-58710.59420664,0.00043207,2]
[421050937,1776951547699,-43784.88561734,0.00043207,15]
[421050938,1776951547709,-147000.000001,0.00043207,2]
[421050939,1776951547718,-9634.54348809,0.00043207,2]
[421050940,1776951547728,-150.0,0.00043207,2]
[421050941,1776951547738,-42587.58,0.00043207,18]
[421050942,1776951547747,-2867.22381327,0.00043207,2]
[421050943,1776951547757,-5000.0,0.00043207,5]
[421050944,1776951547767,-300.0,0.00043207,3]
[421050945,1776951547776,-153656.175081,0.00043207,20]
[421050946,1776951547787,-57491.23,0.00043207,2]
[421050947,1776951547797,-171739.66245671,0.00043207,2]
[421050948,1776951547806,-15798.89843136,0.00043207,5]
[421050949,1776951547816,-10000.0,0.00043207,3]
[421050950,1776951547826,-167.65533377,0.00043207,2]
[421050951,1776951547836,-2000.0,0.00043207,7]
[421050952,1776951547845,-500.44328401,0.00043207,3]
[421050953,1776951547855,-2276.56798682,0.00043207,30]
[421050954,1776951547866,-50000.0,0.00043207,56]
[421050955,1776951547876,-150.2375806,0.00043207,2]
[421050956,1776951547885,-50000.0,0.00043207,57]
[421050957,1776951547895,-50000.0,0.00043207,58]
[421050958,1776951547904,-50000.0,0.00043207,59]
[421050959,1776951547914,-349.31327359,0.00043207,30]
[421050960,1776951547924,-2000.0,0.00043207,31]
[421050961,1776951547933,-5495364.05183455,0.00043207,20]
[421050962,1776951547943,-240169.8091212,0.00043207,45]
[421050963,1776951547953,-453574.87236871,0.00043207,30]